fUST/lending_fUST_20260321
["ID","MTS","AMOUNT","RATE_DAILY","PERIOD"]
[408664250,1774089040182,-151.0,9.156e-05,2]
[408664251,1774089040192,-212.247805,9.156e-05,2]
[408664252,1774089040202,-212.247805,9.156e-05,2]
[408664254,1774089040211,-151.0,9.156e-05,2]
[408664255,1774089040221,-2788.523141,9.156e-05,2]
[408664257,1774089040231,-212.247805,9.156e-05,2]
[408664259,1774089040240,-151.0,9.156e-05,2]
[408664261,1774089040249,-2788.523141,9.156e-05,2]
[408664263,1774089040259,-212.247805,9.156e-05,2]
[408664264,1774089040269,-2788.523141,9.156e-05,2]
[408664265,1774089040279,-2788.523141,9.156e-05,2]
[408664266,1774089040291,-212.247805,9.156e-05,2]
[408664267,1774089040304,-212.247805,9.156e-05,2]
[408664268,1774089040316,-212.247805,9.156e-05,2]
[408664269,1774089040328,-212.247805,9.156e-05,2]
[408664270,1774089040340,-151.0,9.156e-05,2]
[408664271,1774089040351,-151.0,9.156e-05,2]
[408664272,1774089040363,-151.0,9.156e-05,2]
[408664273,1774089040374,-151.0,9.156e-05,2]
[408664274,1774089040384,-151.0,9.156e-05,2]
[408664275,1774089040394,-151.0,9.156e-05,2]
[408664276,1774089040405,-151.0,9.156e-05,2]
[408664277,1774089040414,-288.461111,9.156e-05,2]
[408664278,1774089040424,-1199.097935,9.156e-05,2]
[408664279,1774089040434,-1199.097935,9.156e-05,2]
[408664280,1774089040443,-1199.097935,9.156e-05,2]
[408664281,1774089040453,-1199.097935,9.156e-05,2]
[408664282,1774089040462,-1199.097935,9.156e-05,2]
[408664283,1774089040472,-1199.097935,9.156e-05,2]
[408664284,1774089040481,-1199.097935,9.156e-05,2]
[408664285,1774089040491,-1199.097935,9.156e-05,2]
[408664286,1774089040502,-1199.097935,9.156e-05,2]
[408664287,1774089040511,-1199.097935,9.156e-05,2]
[408664288,1774089040521,-1199.097935,9.156e-05,2]
[408664289,1774089040531,-1199.097935,9.156e-05,2]
[408664290,1774089040541,-848.8928759,9.156e-05,2]
[408664292,1774089041394,-350.2050591,9.156e-05,2]
[408664293,1774089041403,-4.48719369,9.156e-05,2]
[408664294,1774089041414,-1194.61074131,9.156e-05,2]
[408664295,1774089041424,-1199.097935,9.156e-05,2]
[408664296,1774089041433,-1199.097935,9.156e-05,2]
[408664297,1774089041442,-1199.097935,9.156e-05,2]
[408664298,1774089041451,-1199.097935,9.156e-05,2]
[408664299,1774089041461,-1199.097935,9.156e-05,2]
[408664300,1774089041470,-1199.097927,9.156e-05,2]
[408664301,1774089041479,-151.0,9.156e-05,2]
[408664302,1774089041488,-151.0,9.156e-05,2]
[408664303,1774089041497,-151.000027,9.156e-05,2]
[408664304,1774089041507,-151.0,9.156e-05,2]
[408664305,1774089041517,-151.0,9.156e-05,2]
[408664306,1774089041528,-151.0,9.156e-05,2]
[408664307,1774089041540,-151.0,9.156e-05,2]
[408664308,1774089041549,-239.000758,9.156e-05,2]
[408664309,1774089041559,-170.616017,9.156e-05,2]
[408664310,1774089041568,-170.616017,9.156e-05,2]
[408664311,1774089041578,-170.616017,9.156e-05,2]
[408664312,1774089041588,-151.0,9.156e-05,2]
[408664313,1774089041597,-170.616017,9.156e-05,2]
[408664314,1774089041606,-151.0,9.156e-05,2]
[408664315,1774089041616,-170.616017,9.156e-05,2]
[408664316,1774089041626,-151.0,9.156e-05,2]
[408664317,1774089041635,-170.616017,9.156e-05,2]
[408664318,1774089041645,-151.0,9.156e-05,2]
[408664319,1774089041655,-141.33119773,9.156e-05,2]
[408664320,1774089043369,-344.38328414,9.064e-05,2]
[408664321,1774089043477,-4655.61671586,9.064e-05,2]
[408664322,1774089043487,-29.28481927,9.156e-05,2]
[408664323,1774089043496,-151.0,9.156e-05,2]
[408664324,1774089043505,-151.0,9.156e-05,2]
[408664325,1774089043515,-166.20966,9.156e-05,2]
[408664326,1774089043526,-170.616017,9.156e-05,2]
[408664327,1774089043535,-170.616017,9.156e-05,2]
[408664328,1774089043547,-170.616017,9.156e-05,2]
[408664329,1774089043557,-170.616017,9.156e-05,2]
[408664330,1774089043567,-170.616017,9.156e-05,2]
[408664331,1774089043578,-170.616017,9.156e-05,2]
[408664332,1774089043588,-170.616017,9.156e-05,2]
[408664333,1774089043598,-170.616017,9.156e-05,2]
[408664334,1774089043607,-170.616017,9.156e-05,2]
[408664335,1774089043616,-170.616017,9.156e-05,2]
[408664336,1774089043626,-170.616017,9.156e-05,2]
[408664337,1774089043636,-170.616017,9.156e-05,2]
[408664338,1774089043646,-170.616009,9.156e-05,2]
[408664339,1774089043655,-151.0,9.156e-05,2]
[408664340,1774089043664,-151.0,9.156e-05,2]
[408664341,1774089043674,-417.875701,9.156e-05,2]
[408664342,1774089043683,-151.0,9.156e-05,2]
[408664343,1774089043693,-417.875701,9.156e-05,2]
[408664345,1774089043703,-151.0,9.156e-05,2]
[408664347,1774089043712,-417.875701,9.156e-05,2]
[408664349,1774089043721,-151.0,9.156e-05,2]
[408664351,1774089043730,-417.875701,9.156e-05,2]
[408664353,1774089043741,-151.0,9.156e-05,2]
[408664355,1774089043751,-417.875701,9.156e-05,2]
[408664356,1774089043760,-151.0,9.156e-05,2]
[408664357,1774089043770,-417.875701,9.156e-05,2]
[408664358,1774089043779,-151.0,9.156e-05,2]
[408664359,1774089043788,-417.875701,9.156e-05,2]
[408664360,1774089043797,-151.0,9.156e-05,2]
[408664361,1774089043807,-417.875701,9.156e-05,2]
[408664362,1774089043816,-151.0,9.156e-05,2]
[408664363,1774089043827,-151.0,9.156e-05,2]
[408664364,1774089043838,-417.875701,9.156e-05,2]
[408664365,1774089043851,-151.0,9.156e-05,2]
[408664366,1774089043862,-417.875701,9.156e-05,2]
[408664367,1774089043871,-151.0,9.156e-05,2]
[408664368,1774089043880,-417.875701,9.156e-05,2]
[408664369,1774089043890,-151.0,9.156e-05,2]
[408664370,1774089043899,-417.875701,9.156e-05,2]
[408664371,1774089043914,-417.875701,9.156e-05,2]
[408664372,1774089043923,-202.503816,9.156e-05,2]
[408664373,1774089043932,-417.875701,9.156e-05,2]
[408664374,1774089043941,-417.875701,9.156e-05,2]
[408664375,1774089043951,-115.52724084,9.156e-05,2]
[408664380,1774089046260,-302.34846016,9.156e-05,2]
[408664381,1774089046269,-417.875701,9.156e-05,2]
[408664382,1774089046278,-417.875701,9.156e-05,2]
[408664383,1774089046286,-417.875701,9.156e-05,2]
[408664384,1774089046295,-417.875702,9.156e-05,2]
[408664385,1774089046304,-237.85268363,9.156e-05,2]
[408664386,1774089046314,-7716.16005269,9.156e-05,2]
[408664387,1774089046324,-1909.17057868,9.156e-05,2]
[408664388,1774089046333,-9863.183315,9.156e-05,2]
[408664389,1774089046341,-9863.183315,9.156e-05,2]
[408664390,1774089046351,-4527.29317041,9.156e-05,2]
[408664409,1774090232348,-5000.0,7.282e-05,2]
[408664410,1774090232358,-206.92737202,7.356e-05,2]
[408664420,1774090238433,-4793.07262798,7.356e-05,2]
[408664421,1774090238442,-525.0,7.43e-05,2]
[408664422,1774090238452,-300.0,7.598e-05,2]
[408664423,1774090238461,-45000.0,7.6e-05,2]
[408664424,1774090238470,-6367.416404,8.052e-05,2]
[408664425,1774090238479,-420.0,8.358e-05,2]
[408664426,1774090238488,-500.0,8.813e-05,2]
[408664427,1774090238497,-500.0,8.813e-05,2]
[408664428,1774090238506,-500.0,8.813e-05,2]
[408664429,1774090238515,-500.0,8.813e-05,2]
[408664430,1774090238524,-500.0,8.813e-05,2]
[408664431,1774090238533,-500.0,8.813e-05,2]
[408664432,1774090238542,-215315.66945048,8.84e-05,2]
[408664433,1774090238553,-801.13,8.84e-05,2]
[408664435,1774090238564,-2183.15648787,8.84e-05,2]
[408664437,1774090238576,-17860.23373575,8.84e-05,2]
[408664531,1774090243493,-1791.96385414,8.84e-05,2]
[408664532,1774090243508,-1255.08099808,8.84e-05,2]
[408664533,1774090243524,-2014.39507082,8.84e-05,2]
[408664539,1774090246722,-7234.94619007,8.84e-05,2]
[408664540,1774090246734,-22026.72551644,8.84e-05,2]
[408664541,1774090246746,-300207.95075356,8.84e-05,2]
[408664542,1774090246777,-799.65154018,8.84e-05,2]
[408664549,1774090865842,-2727.50290208,7.873e-05,2]
[408664576,1774091432492,-218.72353995,6.899e-05,2]
[408664578,1774091432502,-518.0,6.899e-05,2]
[408664580,1774091432512,-5000.0,6.971e-05,2]
[408664582,1774091432521,-5000.0,7.041e-05,2]
[408664584,1774091432530,-300.0,7.111e-05,2]
[408664587,1774091432540,-1613.13402198,7.114e-05,2]
[408664589,1774091432549,-420.0,7.822e-05,2]
[408664590,1774091432559,-25923.34040466,8.54e-05,2]
[408664604,1774091438878,-1119.51597385,8.54e-05,2]
[408664605,1774091438889,-4630.75608325,8.54e-05,2]
[408664606,1774091438904,-658.48422008,8.54e-05,2]
[408664607,1774091438915,-394.98932397,8.54e-05,2]
[408664753,1774091441140,-558.0,8.455e-05,2]
[408664832,1774091446604,-4442.0,8.455e-05,2]
[408664833,1774091446614,-5135.97175841,8.54e-05,2]
[408664858,1774092640247,-650.81921387,6.915e-05,2]
[408665111,1774092642939,-349.18078613,6.915e-05,2]
[408665113,1774092642949,-3258.85536057,6.985e-05,2]
[408665118,1774092642995,-1741.14463943,6.985e-05,2]
[408665120,1774092643005,-66.17277236,7.056e-05,2]
[408665202,1774092646027,-4933.82722764,7.056e-05,2]
[408665203,1774092646040,-208.17277236,7.056e-05,2]
[408665204,1774092646052,-311.82722764,7.056e-05,2]
[408665205,1774092646062,-300.0,7.198e-05,2]
[408665206,1774092646074,-1189.0,7.198e-05,2]
[408665207,1774092646084,-161.31399344,7.56e-05,2]
[408665208,1774092646093,-1338.95859591,7.631e-05,2]
[408665209,1774092646104,-2971.15883809,7.731e-05,2]
[408665210,1774092646115,-3301.15040907,7.831e-05,2]
[408665211,1774092646126,-420.0,7.918e-05,2]
[408665212,1774092646136,-3631.14198012,8.031e-05,2]
[408665213,1774092646147,-3961.13355118,8.131e-05,2]
[408665214,1774092646157,-150.65433078,8.5e-05,2]
[408665215,1774092646168,-151.7521783,8.5e-05,2]
[408665216,1774092646179,-152.00889662,8.5e-05,2]
[408665217,1774092646190,-152.22742519,8.5e-05,2]
[408665218,1774092646200,-690.0,8.54e-05,2]
[408665219,1774092646222,-690.0,8.54e-05,2]
[408665220,1774092646242,-690.0,8.54e-05,2]
[408665221,1774092646254,-543.04844407,8.54e-05,2]
[408665222,1774092646264,-441.48097713,8.54e-05,2]
[408665223,1774092646274,-339.0,8.54e-05,2]
[408665224,1774092646283,-339.0,8.54e-05,2]
[408665225,1774092646293,-500.0,8.623e-05,2]
[408665226,1774092646303,-500.0,8.623e-05,2]
[408665227,1774092646313,-500.0,8.623e-05,2]
[408665228,1774092646323,-500.0,8.623e-05,2]
[408665229,1774092646332,-415.56140641,8.623e-05,2]
[408665230,1774092646343,-635.69988736,8.623e-05,2]
[408665231,1774092646353,-500.0,8.623e-05,2]
[408665232,1774092646362,-500.0,8.623e-05,2]
[408665233,1774092646372,-500.0,8.623e-05,2]
[408665234,1774092646382,-500.0,8.623e-05,2]
[408665235,1774092646391,-500.0,8.623e-05,2]
[408665236,1774092646401,-500.0,8.623e-05,2]
[408665237,1774092646411,-500.0,8.623e-05,2]
[408665238,1774092646421,-500.0,8.623e-05,2]
[408665239,1774092646431,-77253.05519122,8.644e-05,2]
[408665240,1774092646444,-16723.22434336,8.644e-05,2]
[408665321,1774093837985,-3386.86597802,6.999e-05,2]
[408665324,1774093837995,-5000.0,7.07e-05,2]
[408665326,1774093838005,-5000.0,7.141e-05,2]
[408665328,1774093838014,-521.0,7.141e-05,2]
[408665330,1774093838022,-1200.0,7.212e-05,2]
[408665332,1774093838032,-300.0,7.285e-05,2]
[408665334,1774093838041,-420.0,8.014e-05,2]
[408665336,1774093838050,-196.1235054,8.144e-05,2]
[408665338,1774093838059,-1103.9732247,8.41e-05,2]
[408665340,1774093838068,-8064.18330013,8.495e-05,2]
[408665342,1774093838078,-384.04689768,8.523e-05,2]
[408665344,1774093838087,-500.0,8.523e-05,2]
[408665346,1774093838096,-500.0,8.573e-05,2]
[408665348,1774093838105,-500.0,8.573e-05,2]
[408665349,1774093838114,-500.0,8.573e-05,2]
[408665352,1774093838124,-500.0,8.573e-05,2]
[408665354,1774093838133,-502.68943439,8.573e-05,2]
[408665356,1774093838143,-500.0,8.573e-05,2]
[408665358,1774093838152,-500.0,8.573e-05,2]
[408665360,1774093838161,-500.0,8.573e-05,2]
[408665362,1774093838171,-500.0,8.573e-05,2]
[408665364,1774093838180,-500.0,8.573e-05,2]
[408665366,1774093838189,-500.0,8.573e-05,2]
[408665367,1774093838198,-500.0,8.573e-05,2]
[408665370,1774093838207,-500.0,8.573e-05,2]
[408665372,1774093838217,-500.0,8.573e-05,2]
[408665373,1774093838225,-1193819.9460747,8.595e-05,2]
[408665376,1774093838236,-24030.50160993,8.595e-05,2]
[408665595,1774093840436,-5890.6388292,8.595e-05,2]
[408665784,1774094221661,400.0,3.478e-05,16]
[408665786,1774094312418,471.7,3e-05,10]
[408665787,1774094461775,-3070.58314754,7.618e-05,2]
[408665788,1774094461793,-1929.41685246,7.618e-05,2]
[408665789,1774094461807,-3070.58314754,7.695e-05,2]
[408665828,1774095032123,-5000.0,7.03e-05,2]
[408665830,1774095032134,-520.0,7.03e-05,2]
[408665832,1774095032144,-963.0,7.1e-05,2]
[408665834,1774095032154,-5000.0,7.101e-05,2]
[408665836,1774095032163,-889.97724823,7.173e-05,2]
[408665891,1774095038102,-1413.5,7.101e-05,2]
[408665903,1774095038210,-3586.5,7.101e-05,2]
[408665905,1774095038220,-2294.54011751,7.173e-05,2]
[408665907,1774095038230,-1233.39873603,7.23e-05,2]
[408665909,1774095038240,-3049.93861458,7.43e-05,2]
[408665911,1774095038250,-1268.059264,7.789e-05,2]
[408665913,1774095038260,-3653.11693133,7.97e-05,2]
[408665915,1774095038270,-19141.50555729,8e-05,2]
[408665917,1774095038279,-1268.059264,8.117e-05,2]
[408665919,1774095038289,-300.0,8.159e-05,2]
[408665921,1774095038298,-300.0,8.159e-05,2]
[408665923,1774095038308,-300.0,8.159e-05,2]
[408665926,1774095038318,-300.0,8.159e-05,2]
[408665928,1774095038328,-300.0,8.159e-05,2]
[408665930,1774095038337,-300.0,8.159e-05,2]
[408665932,1774095038347,-300.0,8.159e-05,2]
[408665934,1774095038357,-300.0,8.159e-05,2]
[408665936,1774095038366,-300.0,8.159e-05,2]
[408665937,1774095038375,-300.0,8.159e-05,2]
[408665939,1774095038385,-300.0,8.159e-05,2]
[408665941,1774095038394,-300.0,8.159e-05,2]
[408665944,1774095038404,-300.0,8.159e-05,2]
[408665946,1774095038414,-300.0,8.159e-05,2]
[408665948,1774095038423,-300.0,8.159e-05,2]
[408665950,1774095038433,-500.0,8.273e-05,2]
[408665952,1774095038443,-500.0,8.273e-05,2]
[408665954,1774095038452,-500.0,8.273e-05,2]
[408665956,1774095038462,-500.0,8.273e-05,2]
[408665958,1774095038475,-500.0,8.273e-05,2]
[408665960,1774095038484,-257.44625151,8.273e-05,2]
[408665962,1774095038495,-500.0,8.273e-05,2]
[408665964,1774095038504,-247.2838057,8.273e-05,2]
[408665966,1774095038515,-500.0,8.273e-05,2]
[408665968,1774095038524,-500.0,8.273e-05,2]
[408665970,1774095038535,-500.0,8.273e-05,2]
[408665973,1774095038544,-151696.80084146,8.295e-05,2]
[408666173,1774095040638,-2357.72519592,8.295e-05,2]
[408666176,1774095040650,-353.435,8.295e-05,2]
[408666384,1774095045230,-5000.0,8.212e-05,2]
[408666385,1774095045241,-73660.66006813,8.295e-05,2]
[408666386,1774095045254,-666.48382913,8.295e-05,2]
[408666403,1774095046460,-1546.03582432,8.295e-05,2]
[408666680,1774096232399,-1200.48487965,6.179e-05,2]
[408666874,1774096240871,-3799.51512035,6.179e-05,2]
[408666875,1774096240880,-5000.0,6.241e-05,2]
[408666876,1774096240889,-510.0,6.304e-05,2]
[408666877,1774096240898,-300.0,6.493e-05,2]
[408666878,1774096240909,-300.0,6.493e-05,2]
[408666879,1774096240919,-300.0,6.695e-05,2]
[408666880,1774096240929,-1200.0,6.695e-05,2]
[408666881,1774096240943,-6316.2161096,6.696e-05,2]
[408666882,1774096240953,-398.3314698,7.208e-05,2]
[408666883,1774096240963,-300.0,7.351e-05,2]
[408666884,1774096240972,-300.0,7.351e-05,2]
[408666885,1774096240982,-300.0,7.351e-05,2]
[408666886,1774096240992,-300.0,7.351e-05,2]
[408666887,1774096241001,-300.0,7.351e-05,2]
[408666888,1774096241013,-300.0,7.351e-05,2]
[408666889,1774096241024,-300.0,7.351e-05,2]
[408666890,1774096241034,-300.0,7.351e-05,2]
[408666891,1774096241045,-300.0,7.351e-05,2]
[408666892,1774096241055,-300.0,7.351e-05,2]
[408666893,1774096241064,-300.0,7.351e-05,2]
[408666894,1774096241075,-300.0,7.351e-05,2]
[408666895,1774096241085,-300.0,7.351e-05,2]
[408666896,1774096241097,-300.0,7.351e-05,2]
[408666897,1774096241106,-300.0,7.351e-05,2]
[408666898,1774096241116,-420.0,7.364e-05,2]
[408666899,1774096241126,-158.05542669,7.893e-05,2]
[408666900,1774096241136,-160.05612886,7.893e-05,2]
[408666901,1774096241147,-500.0,7.893e-05,2]
[408666902,1774096241156,-500.0,7.893e-05,2]
[408666903,1774096241167,-500.0,7.893e-05,2]
[408666904,1774096241176,-221.43812798,7.893e-05,2]
[408666905,1774096241193,-278.56187202,7.893e-05,2]
[408666906,1774096241202,-471.21401805,7.893e-05,2]
[408666915,1774096243502,-28.78598195,7.893e-05,2]
[408666916,1774096243513,-501.93817855,7.893e-05,2]
[408666917,1774096243522,-500.0,7.893e-05,2]
[408666918,1774096243532,-500.24088294,7.893e-05,2]
[408666919,1774096243541,-158.05295095,7.893e-05,2]
[408666920,1774096243551,-160.053888,7.893e-05,2]
[408666921,1774096243561,-500.0,7.893e-05,2]
[408666922,1774096243571,-258.29057716,7.893e-05,2]
[408666923,1774096243580,-500.0,7.893e-05,2]
[408666924,1774096243590,-500.0,7.893e-05,2]
[408666925,1774096243599,-250.0,7.9e-05,2]
[408666926,1774096243610,-18981.82252157,7.917e-05,2]
[408666933,1774096246887,-2181.94732403,7.814e-05,2]
[408666934,1774096262616,-2577.61026782,7.736e-05,2]
[408666935,1774096262639,-2422.38973218,7.736e-05,2]
[408666983,1774097438596,-400.6104998,6.532e-05,2]
[408666984,1774097438607,-1414.56,6.532e-05,2]
[408666985,1774097438624,-3184.8295002,6.532e-05,2]
[408666986,1774097438635,-5000.0,6.598e-05,2]
[408666987,1774097438646,-514.0,6.598e-05,2]
[408666988,1774097438656,-300.0,6.729e-05,2]
[408666989,1774097438667,-300.0,6.729e-05,2]
[408666990,1774097438677,-300.0,6.729e-05,2]
[408666991,1774097438688,-300.0,6.729e-05,2]
[408666992,1774097438700,-300.0,6.729e-05,2]
[408666993,1774097438710,-300.0,6.729e-05,2]
[408666994,1774097438719,-300.0,6.729e-05,2]
[408666995,1774097438729,-300.0,6.729e-05,2]
[408666996,1774097438739,-300.0,6.729e-05,2]
[408666997,1774097438748,-300.0,6.729e-05,2]
[408666998,1774097438758,-300.0,6.729e-05,2]
[408666999,1774097438768,-300.0,6.729e-05,2]
[408667000,1774097438776,-300.0,6.729e-05,2]
[408667001,1774097438785,-300.0,6.729e-05,2]
[408667002,1774097438794,-300.0,6.729e-05,2]
[408667003,1774097438804,-600.0,6.863e-05,2]
[408667004,1774097438813,-300.0,7.069e-05,2]
[408667005,1774097438822,-655.3184012,7.37e-05,2]
[408667006,1774097438832,-99520.3995012,7.37e-05,2]
[408667007,1774097438841,-720.0,7.549e-05,2]
[408667008,1774097438851,-187.353,7.562e-05,2]
[408667009,1774097438860,-35447.63767225,7.617e-05,2]
[408667010,1774097438870,-500.0,7.693e-05,2]
[408667011,1774097438879,-200.0,7.693e-05,2]
[408667012,1774097438888,-500.0,7.693e-05,2]
[408667013,1774097438897,-197.60537834,7.693e-05,2]
[408667014,1774097438907,-500.0,7.693e-05,2]
[408667015,1774097438916,-500.0,7.693e-05,2]
[408667016,1774097438926,-420.0,7.776e-05,2]
[408667017,1774097438935,-500.0,7.793e-05,2]
[408667018,1774097439213,-500.0,7.793e-05,2]
[408667019,1774097439223,-500.0,7.793e-05,2]
[408667020,1774097439233,-166.0,7.917e-05,2]
[408667021,1774097439242,-690.0,7.917e-05,2]
[408667022,1774097439252,-571.50084669,7.917e-05,2]
[408667023,1774097439261,-9747.73893158,8e-05,2]
[408667024,1774097439271,-500.0,8.077e-05,2]
[408667025,1774097439280,-500.0,8.077e-05,2]
[408667026,1774097439290,-151.55001546,8.1e-05,2]
[408667027,1774097439300,-154.14913777,8.1e-05,2]
[408667028,1774097439309,-154.70647809,8.1e-05,2]
[408667029,1774097439318,-154.96561821,8.1e-05,2]
[408667030,1774097439328,-500.0,8.133e-05,2]
[408667031,1774097439337,-557.704628,8.157e-05,2]
[408667032,1774097439346,-557.704628,8.157e-05,2]
[408667033,1774097439356,-557.704628,8.157e-05,2]
[408667034,1774097439365,-557.704628,8.157e-05,2]
[408667035,1774097439375,-557.704628,8.157e-05,2]
[408667036,1774097439384,-557.704628,8.157e-05,2]
[408667037,1774097439394,-557.704628,8.157e-05,2]
[408667038,1774097439404,-557.704628,8.157e-05,2]
[408667039,1774097439414,-497.329999,8.157e-05,2]
[408667040,1774097439424,-497.329999,8.157e-05,2]
[408667041,1774097439434,-497.329999,8.157e-05,2]
[408667042,1774097439444,-497.329999,8.157e-05,2]
[408667043,1774097439456,-497.329999,8.157e-05,2]
[408667044,1774097439465,-497.329999,8.157e-05,2]
[408667045,1774097439475,-151.0,8.157e-05,2]
[408667046,1774097439485,-640.077978,8.157e-05,2]
[408667047,1774097439494,-640.077978,8.157e-05,2]
[408667048,1774097439503,-640.077978,8.157e-05,2]
[408667049,1774097439513,-640.077978,8.157e-05,2]
[408667050,1774097439523,-640.077978,8.157e-05,2]
[408667051,1774097439532,-640.077978,8.157e-05,2]
[408667052,1774097439542,-640.077978,8.157e-05,2]
[408667053,1774097439552,-640.077978,8.157e-05,2]
[408667054,1774097439562,-640.077978,8.157e-05,2]
[408667055,1774097439572,-640.077978,8.157e-05,2]
[408667056,1774097439582,-640.077978,8.157e-05,2]
[408667057,1774097439591,-640.077978,8.157e-05,2]
[408667058,1774097439601,-411.711303,8.157e-05,2]
[408667059,1774097439612,-411.711303,8.157e-05,2]
[408667060,1774097439624,-411.711303,8.157e-05,2]
[408667061,1774097439634,-411.711303,8.157e-05,2]
[408667062,1774097439647,-411.711303,8.157e-05,2]
[408667063,1774097439656,-411.711303,8.157e-05,2]
[408667064,1774097439666,-411.711303,8.157e-05,2]
[408667065,1774097439676,-411.711303,8.157e-05,2]
[408667066,1774097439685,-411.711303,8.157e-05,2]
[408667067,1774097439694,-411.711303,8.157e-05,2]
[408667068,1774097439703,-242.12271,8.157e-05,2]
[408667069,1774097439713,-242.12271,8.157e-05,2]
[408667070,1774097439722,-411.711303,8.157e-05,2]
[408667071,1774097439731,-242.12271,8.157e-05,2]
[408667072,1774097439741,-411.711303,8.157e-05,2]
[408667073,1774097439750,-242.12271,8.157e-05,2]
[408667074,1774097439760,-242.12271,8.157e-05,2]
[408667075,1774097439770,-242.12271,8.157e-05,2]
[408667076,1774097439779,-242.12271,8.157e-05,2]
[408667077,1774097439789,-242.12271,8.157e-05,2]
[408667078,1774097439798,-242.12271,8.157e-05,2]
[408667079,1774097439808,-242.12271,8.157e-05,2]
[408667080,1774097439818,-242.12271,8.157e-05,2]
[408667081,1774097439828,-242.12271,8.157e-05,2]
[408667082,1774097439838,-1279.207105,8.157e-05,2]
[408667083,1774097439847,-1279.207105,8.157e-05,2]
[408667084,1774097439857,-1279.207105,8.157e-05,2]
[408667085,1774097439867,-1279.207105,8.157e-05,2]
[408667086,1774097439876,-1279.207105,8.157e-05,2]
[408667087,1774097439886,-1279.207105,8.157e-05,2]
[408667088,1774097439897,-1279.207105,8.157e-05,2]
[408667089,1774097439906,-1279.207105,8.157e-05,2]
[408667090,1774097439916,-1279.207105,8.157e-05,2]
[408667091,1774097439926,-1279.207105,8.157e-05,2]
[408667092,1774097439936,-1180.89920661,8.157e-05,2]
[408667093,1774097439950,-98.30789839,8.157e-05,2]
[408667094,1774097439959,-373.23626759,8.157e-05,2]
[408667293,1774097446794,-521.19102886,6.467e-05,2]
[408667294,1774097446812,-4478.80897114,6.467e-05,2]
[408667295,1774097446828,-722.29102882,8.157e-05,2]
[408667296,1774097446841,-183.67980859,8.157e-05,2]
[408667297,1774097446853,-272.299266,8.157e-05,2]
[408667298,1774097446863,-613.877906,8.157e-05,2]
[408667299,1774097446876,-613.877906,8.157e-05,2]
[408667300,1774097446890,-613.877906,8.157e-05,2]
[408667301,1774097446902,-613.877906,8.157e-05,2]
[408667302,1774097446914,-613.877906,8.157e-05,2]
[408667303,1774097446925,-613.877906,8.157e-05,2]
[408667304,1774097446937,-613.877906,8.157e-05,2]
[408667305,1774097446948,-613.877906,8.157e-05,2]
[408667306,1774097446961,-1000.0,8.241e-05,2]
[408667307,1774097446971,-1002.1518139,8.241e-05,2]
[408667308,1774097446981,-1000.0,8.241e-05,2]
[408667309,1774097446993,-1000.0,8.241e-05,2]
[408667310,1774097447008,-1000.0,8.295e-05,2]
[408667311,1774097447020,-438.30536749,8.295e-05,2]
[408667312,1774097447032,-151.0,8.295e-05,2]
[408667313,1774097447043,-151.0,8.295e-05,2]
[408667314,1774097447055,-151.83648464,8.295e-05,2]
[408667315,1774097447067,-251.03786946,8.3e-05,2]
[408667316,1774097447079,-864.0,8.304e-05,2]
[408667317,1774097447092,-1000.0,8.341e-05,2]
[408667318,1774097447103,-1000.0,8.341e-05,2]
[408667319,1774097447115,-1000.0,8.341e-05,2]
[408667320,1774097447127,-557.704628,8.341e-05,2]
[408667321,1774097447138,-557.704628,8.341e-05,2]
[408667322,1774097447150,-557.704628,8.341e-05,2]
[408667323,1774097447161,-557.704628,8.341e-05,2]
[408667324,1774097447172,-640.077978,8.341e-05,2]
[408667325,1774097447184,-640.077978,8.341e-05,2]
[408667326,1774097447196,-640.077978,8.341e-05,2]
[408667327,1774097447207,-640.077978,8.341e-05,2]
[408667328,1774097447219,-411.711303,8.341e-05,2]
[408667329,1774097447230,-411.711303,8.341e-05,2]
[408667330,1774097447241,-411.711303,8.341e-05,2]
[408667331,1774097447253,-242.12271,8.341e-05,2]
[408667332,1774097447264,-411.711303,8.341e-05,2]
[408667333,1774097447275,-242.12271,8.341e-05,2]
[408667334,1774097447287,-242.12271,8.341e-05,2]
[408667335,1774097447299,-242.12271,8.341e-05,2]
[408667336,1774097447310,-1279.207105,8.341e-05,2]
[408667337,1774097447322,-1279.207105,8.341e-05,2]
[408667338,1774097447333,-1279.207105,8.341e-05,2]
[408667339,1774097447345,-1279.207105,8.341e-05,2]
[408667340,1774097447357,-613.877906,8.341e-05,2]